[Event "*** SCC Grand Prix: Titled Tuesday Blitz"]
[Site "Chess.com"]
[Date "2020.10.13"]
[Round "6"]
[White "WuinaterJr"]
[Black "RobertoJBM"]
[Result "0-1"]
[WhiteElo "2527"]
[BlackElo "2710"]
[TimeControl "180+1"]
[EndTime "11:07:54 PDT"]
[Termination "RobertoJBM won by resignation"]

1. d4 {[%clk 0:03:00.9]} 1... c6 {[%clk 0:03:00.8]} 2. e4 {[%clk 0:02:58.4]}
2... d5 {[%clk 0:03:01.7]} 3. Nc3 {[%clk 0:02:58.1]} 3... dxe4 {[%clk
0:03:01.9]} 4. Nxe4 {[%clk 0:02:58.9]} 4... Nd7 {[%clk 0:03:02.3]} 5. Nf3 {[%clk
0:02:57.5]} 5... Ngf6 {[%clk 0:03:02.8]} 6. Nxf6+ {[%clk 0:02:57.6]} 6... Nxf6
{[%clk 0:03:03.7]} 7. Bd3 {[%clk 0:02:57.9]} 7... Bg4 {[%clk 0:03:03]} 8. c3
{[%clk 0:02:56.6]} 8... Qd5 {[%clk 0:03:03.5]} 9. h3 {[%clk 0:02:53.9]} 9...
Bxf3 {[%clk 0:03:02.9]} 10. Qxf3 {[%clk 0:02:54]} 10... Qxf3 {[%clk 0:03:02.8]}
11. gxf3 {[%clk 0:02:54.9]} 11... e6 {[%clk 0:03:00.9]} 12. Bg5 {[%clk
0:02:54.3]} 12... Be7 {[%clk 0:02:57.4]} 13. O-O-O {[%clk 0:02:54.2]} 13... Nd5
{[%clk 0:02:57]} 14. Be3 {[%clk 0:02:46.8]} 14... b5 {[%clk 0:02:56.7]} 15. Rhg1
{[%clk 0:02:45.9]} 15... g6 {[%clk 0:02:56.4]} 16. Kb1 {[%clk 0:02:38.4]} 16...
a5 {[%clk 0:02:55.9]} 17. c4 {[%clk 0:02:32.6]} 17... bxc4 {[%clk 0:02:54.9]}
18. Bxc4 {[%clk 0:02:33.5]} 18... Kd7 {[%clk 0:02:55.1]} 19. Bxd5 {[%clk
0:02:19]} 19... cxd5 {[%clk 0:02:50.6]} 20. Rc1 {[%clk 0:02:18.2]} 20... Rhc8
{[%clk 0:02:48.9]} 21. Rxc8 {[%clk 0:02:15.2]} 21... Rxc8 {[%clk 0:02:49.8]} 22.
Rc1 {[%clk 0:02:15.8]} 22... Rb8 {[%clk 0:02:49.5]} 23. Rc2 {[%clk 0:02:08.4]}
23... Rb4 {[%clk 0:02:45]} 24. a3 {[%clk 0:02:04.5]} 24... Rb3 {[%clk
0:02:40.6]} 25. Kc1 {[%clk 0:01:53.3]} 25... Bd6 {[%clk 0:02:28.9]} 26. Kd2
{[%clk 0:01:50.6]} 26... f6 {[%clk 0:02:24.1]} 27. Ke2 {[%clk 0:01:50]} 27... e5
{[%clk 0:02:22.4]} 28. Rd2 {[%clk 0:01:39.3]} 28... Ke6 {[%clk 0:02:17.2]} 29.
Rc2 {[%clk 0:01:38.4]} 29... a4 {[%clk 0:02:10.4]} 30. Rd2 {[%clk 0:01:33.5]}
30... exd4 {[%clk 0:02:02]} 31. Bxd4 {[%clk 0:01:32.9]} 31... Be5 {[%clk
0:02:01.9]} 32. Bxe5 {[%clk 0:00:50.6]} 32... fxe5 {[%clk 0:01:54.8]} 33. Rc2
{[%clk 0:00:50.9]} 33... d4 {[%clk 0:01:52.2]} 34. Rc6+ {[%clk 0:00:50.3]} 34...
Kd5 {[%clk 0:01:51.8]} 35. Ra6 {[%clk 0:00:50.5]} 35... Rxb2+ {[%clk 0:01:51.8]}
36. Ke1 {[%clk 0:00:50.1]} 36... Rb3 {[%clk 0:01:48.8]} 37. Rxa4 {[%clk
0:00:49.2]} 37... Rxf3 {[%clk 0:01:48.5]} 38. h4 {[%clk 0:00:49.2]} 38... Rh3
{[%clk 0:01:44.6]} 39. Ra5+ {[%clk 0:00:49.2]} 39... Ke4 {[%clk 0:01:44.7]} 40.
Ke2 {[%clk 0:00:44.7]} 40... Rb3 {[%clk 0:01:40]} 41. Ra8 {[%clk 0:00:42]} 41...
Rb2+ {[%clk 0:01:39.6]} 42. Kf1 {[%clk 0:00:35.2]} 42... Ra2 {[%clk 0:01:38.7]}
43. Ra7 {[%clk 0:00:31.1]} 43... d3 {[%clk 0:01:37.2]} 44. Ke1 {[%clk
0:00:21.8]} 44... Kf3 {[%clk 0:01:22.3]} 45. Rf7+ {[%clk 0:00:21.1]} 45... Kg4
{[%clk 0:01:21.3]} 46. Rxh7 {[%clk 0:00:20.5]} 46... Rxa3 {[%clk 0:01:17.5]} 47.
Re7 {[%clk 0:00:20.5]} 47... Kf4 {[%clk 0:01:13.1]} 48. Kd2 {[%clk 0:00:20.1]}
48... Ke4 {[%clk 0:01:11.3]} 49. f3+ {[%clk 0:00:18.8]} 49... Kf5 {[%clk
0:01:08.6]} 50. Ke3 {[%clk 0:00:18.3]} 50... d2+ {[%clk 0:01:08]} 51. Kxd2
{[%clk 0:00:18.7]} 51... Rxf3 {[%clk 0:01:08.6]} 52. Ke2 {[%clk 0:00:18.9]}
52... Rh3 {[%clk 0:01:08.2]} 53. Rh7 {[%clk 0:00:19.5]} 53... Kf4 {[%clk
0:01:04.1]} 54. Rh6 {[%clk 0:00:19.5]} 54... Rh2+ {[%clk 0:01:03.6]} 55. Ke1
{[%clk 0:00:19.2]} 55... e4 {[%clk 0:00:58.3]} 56. Rxg6 {[%clk 0:00:19.1]} 56...
Kf3 {[%clk 0:00:56.2]} 57. Rf6+ {[%clk 0:00:15.7]} 57... Ke3 {[%clk 0:00:56.1]}
58. Kd1 {[%clk 0:00:14.8]} 58... Rh1+ {[%clk 0:00:54.8]} 59. Kc2 {[%clk
0:00:14.9]} 59... Rxh4 {[%clk 0:00:54.5]} 60. Rg6 {[%clk 0:00:11.5]} 60... Kf2
{[%clk 0:00:53.3]} 61. Kd2 {[%clk 0:00:08.8]} 61... e3+ {[%clk 0:00:49.7]} 62.
Kd3 {[%clk 0:00:09.1]} 62... e2 {[%clk 0:00:50.1]} 63. Rf6+ {[%clk 0:00:09.4]}
63... Ke1 {[%clk 0:00:50.5]} 64. Kc2 {[%clk 0:00:10]} 64... Rd4 {[%clk
0:00:46.2]} 65. Rf8 {[%clk 0:00:08.9]} 65... Rd7 {[%clk 0:00:43.7]} 66. Kb2
{[%clk 0:00:06.8]} 66... Kd2 {[%clk 0:00:41]} 0-1

[Event "*** SCC Grand Prix: Titled Tuesday Blitz"]
[Site "Chess.com"]
[Date "2020.10.13"]
[Round "6"]
[White "Pashinskiy_Mikhail"]
[Black "shrek4life02"]
[Result "0-1"]
[WhiteElo "2353"]
[BlackElo "2582"]
[TimeControl "180+1"]
[EndTime "11:07:56 PDT"]
[Termination "shrek4life02 won by checkmate"]

1. e4 {[%clk 0:02:58.8]} 1... c6 {[%clk 0:03:00.3]} 2. d4 {[%clk 0:02:56.7]}
2... d5 {[%clk 0:03:01]} 3. e5 {[%clk 0:02:56.7]} 3... Bf5 {[%clk 0:03:00.9]} 4.
Nd2 {[%clk 0:02:56.2]} 4... e6 {[%clk 0:03:00.7]} 5. Nb3 {[%clk 0:02:56.1]} 5...
Bg6 {[%clk 0:03:00.9]} 6. Nf3 {[%clk 0:02:55.4]} 6... Ne7 {[%clk 0:03:01.5]} 7.
Be2 {[%clk 0:02:54.7]} 7... Nf5 {[%clk 0:03:02.1]} 8. O-O {[%clk 0:02:53.8]}
8... Be7 {[%clk 0:03:02.3]} 9. a4 {[%clk 0:02:43.2]} 9... O-O {[%clk 0:03:00.9]}
10. a5 {[%clk 0:02:43]} 10... Nd7 {[%clk 0:03:00]} 11. c4 {[%clk 0:02:41.6]}
11... dxc4 {[%clk 0:02:28.3]} 12. Bxc4 {[%clk 0:02:42.5]} 12... b5 {[%clk
0:02:28.7]} 13. Be2 {[%clk 0:02:32]} 13... Rc8 {[%clk 0:02:27.7]} 14. h3 {[%clk
0:02:27.2]} 14... a6 {[%clk 0:02:18.4]} 15. Bf4 {[%clk 0:02:14.4]} 15... c5
{[%clk 0:02:13.9]} 16. d5 {[%clk 0:02:11.8]} 16... exd5 {[%clk 0:01:53.8]} 17.
Qxd5 {[%clk 0:02:12.7]} 17... c4 {[%clk 0:01:54.5]} 18. Nbd4 {[%clk 0:02:07]}
18... Nxd4 {[%clk 0:01:49.8]} 19. Nxd4 {[%clk 0:02:07.9]} 19... Nc5 {[%clk
0:01:49.4]} 20. Nc6 {[%clk 0:02:02.5]} 20... Be4 {[%clk 0:01:24.8]} 21. Qxe4
{[%clk 0:01:24.4]} 21... Nxe4 {[%clk 0:01:24.4]} 22. Nxd8 {[%clk 0:01:24.9]}
22... Rfxd8 {[%clk 0:01:25.2]} 23. Rfd1 {[%clk 0:01:23.8]} 23... Bb4 {[%clk
0:01:16.2]} 24. Bf3 {[%clk 0:01:22.1]} 24... Nc5 {[%clk 0:01:16.1]} 25. Bg4
{[%clk 0:01:04.5]} 25... Ne6 {[%clk 0:01:13.4]} 26. Be3 {[%clk 0:00:55.1]} 26...
h6 {[%clk 0:00:58.1]} 27. Bb6 {[%clk 0:00:52.4]} 27... Rxd1+ {[%clk 0:00:54.9]}
28. Rxd1 {[%clk 0:00:53.3]} 28... c3 {[%clk 0:00:52.6]} 29. bxc3 {[%clk
0:00:52.2]} 29... Bxc3 {[%clk 0:00:53.5]} 30. f4 {[%clk 0:00:51.5]} 30... h5
{[%clk 0:00:37.4]} 31. Bxh5 {[%clk 0:00:42.9]} 31... Nxf4 {[%clk 0:00:38]} 32.
Bf3 {[%clk 0:00:40.3]} 32... b4 {[%clk 0:00:31.1]} 33. Bb7 {[%clk 0:00:39.2]}
33... Rb8 {[%clk 0:00:31.7]} 34. Bxa6 {[%clk 0:00:39]} 34... b3 {[%clk
0:00:32.4]} 35. Bc4 {[%clk 0:00:26.8]} 35... b2 {[%clk 0:00:29.8]} 36. Ba2
{[%clk 0:00:26.7]} 36... Ra8 {[%clk 0:00:21.4]} 37. Rd8+ {[%clk 0:00:26.5]}
37... Rxd8 {[%clk 0:00:20.4]} 38. Bxd8 {[%clk 0:00:27.4]} 38... Nd5 {[%clk
0:00:17.4]} 39. Kf2 {[%clk 0:00:19.2]} 39... Bxe5 {[%clk 0:00:17.3]} 40. Ke2
{[%clk 0:00:15.8]} 40... Nc3+ {[%clk 0:00:17.4]} 41. Kd3 {[%clk 0:00:14.9]}
41... Nxa2 {[%clk 0:00:18.2]} 42. Kc2 {[%clk 0:00:15.8]} 42... Nb4+ {[%clk
0:00:18.6]} 43. Kb1 {[%clk 0:00:11.9]} 43... Na6 {[%clk 0:00:18.9]} 44. Bb6
{[%clk 0:00:11.7]} 44... f5 {[%clk 0:00:18.7]} 45. Be3 {[%clk 0:00:10.6]} 45...
Kf7 {[%clk 0:00:17.4]} 46. Bd2 {[%clk 0:00:08.5]} 46... Ke6 {[%clk 0:00:17.7]}
47. Bg5 {[%clk 0:00:08.2]} 47... g6 {[%clk 0:00:17.7]} 48. Bd8 {[%clk
0:00:07.6]} 48... Kd5 {[%clk 0:00:18]} 49. Bb6 {[%clk 0:00:07.9]} 49... Kc4
{[%clk 0:00:18.6]} 50. g4 {[%clk 0:00:07.9]} 50... f4 {[%clk 0:00:18.5]} 51. Bf2
{[%clk 0:00:07.1]} 51... Kb3 {[%clk 0:00:18.2]} 52. h4 {[%clk 0:00:07.4]} 52...
Nc5 {[%clk 0:00:17.6]} 53. h5 {[%clk 0:00:07]} 53... Ne4 {[%clk 0:00:17.9]} 54.
Be1 {[%clk 0:00:06.4]} 54... Bc3 {[%clk 0:00:18.3]} 55. hxg6 {[%clk 0:00:02.2]}
55... Bxe1 {[%clk 0:00:16.3]} 56. g7 {[%clk 0:00:03.1]} 56... Nc3# {[%clk
0:00:16.8]} 0-1

[Event "*** SCC Grand Prix: Titled Tuesday Blitz"]
[Site "Chess.com"]
[Date "2020.10.13"]
[Round "6"]
[White "NewBornNow"]
[Black "VerdeNotte"]
[Result "0-1"]
[WhiteElo "2650"]
[BlackElo "2835"]
[TimeControl "180+1"]
[EndTime "11:07:57 PDT"]
[Termination "VerdeNotte won by resignation"]

1. e4 {[%clk 0:03:00.9]} 1... c5 {[%clk 0:03:00]} 2. Nf3 {[%clk 0:02:58.9]} 2...
d6 {[%clk 0:03:00.3]} 3. d4 {[%clk 0:02:55.8]} 3... cxd4 {[%clk 0:03:01.2]} 4.
Nxd4 {[%clk 0:02:54.2]} 4... Nf6 {[%clk 0:03:01.6]} 5. Nc3 {[%clk 0:02:54.2]}
5... g6 {[%clk 0:03:02.2]} 6. Be3 {[%clk 0:02:53.3]} 6... Nc6 {[%clk 0:03:02.5]}
7. f3 {[%clk 0:02:52.7]} 7... Bg7 {[%clk 0:03:02.9]} 8. Qd2 {[%clk 0:02:52.8]}
8... O-O {[%clk 0:03:03.3]} 9. Bc4 {[%clk 0:02:52.7]} 9... Bd7 {[%clk
0:03:03.3]} 10. Bb3 {[%clk 0:02:51.5]} 10... Rc8 {[%clk 0:03:00.6]} 11. O-O-O
{[%clk 0:02:50.5]} 11... Nxd4 {[%clk 0:03:00.5]} 12. Bxd4 {[%clk 0:02:50.2]}
12... b5 {[%clk 0:03:00.9]} 13. Kb1 {[%clk 0:02:34.9]} 13... a5 {[%clk
0:02:59.8]} 14. a3 {[%clk 0:02:34.8]} 14... b4 {[%clk 0:02:57.9]} 15. axb4
{[%clk 0:02:34]} 15... axb4 {[%clk 0:02:58]} 16. Na2 {[%clk 0:02:32.8]} 16...
Qa5 {[%clk 0:02:36.9]} 17. Qxb4 {[%clk 0:02:27.6]} 17... Qa6 {[%clk 0:02:37.3]}
18. Qb6 {[%clk 0:02:24.1]} 18... Qa8 {[%clk 0:02:34.2]} 19. Qa7 {[%clk 0:02:08]}
19... Qxa7 {[%clk 0:02:16.6]} 20. Bxa7 {[%clk 0:01:59.7]} 20... Be6 {[%clk
0:02:17.5]} 21. Bxe6 {[%clk 0:01:54.8]} 21... fxe6 {[%clk 0:02:17.6]} 22. Bd4
{[%clk 0:01:54.1]} 22... e5 {[%clk 0:02:10.1]} 23. Bc3 {[%clk 0:01:52.2]} 23...
Bh6 {[%clk 0:02:08]} 24. Rd3 {[%clk 0:01:50.7]} 24... Nd7 {[%clk 0:02:07.4]} 25.
Bb4 {[%clk 0:01:48.8]} 25... Rb8 {[%clk 0:01:57.5]} 26. b3 {[%clk 0:01:44.7]}
26... Kf7 {[%clk 0:01:54.7]} 27. Ba3 {[%clk 0:01:35.3]} 27... Ke6 {[%clk
0:01:52.4]} 28. Nc3 {[%clk 0:01:31.2]} 28... Nb6 {[%clk 0:01:47.4]} 29. Nd5
{[%clk 0:01:21.1]} 29... Rfc8 {[%clk 0:01:45.8]} 30. Nxb6 {[%clk 0:01:11.5]}
30... Rxb6 {[%clk 0:01:46.7]} 31. Rhd1 {[%clk 0:01:03.9]} 31... Bf4 {[%clk
0:01:46.4]} 32. h3 {[%clk 0:00:57.6]} 32... h5 {[%clk 0:01:45.8]} 33. Kb2 {[%clk
0:00:56.4]} 33... h4 {[%clk 0:01:37.5]} 34. Rd5 {[%clk 0:00:54.2]} 34... Be3
{[%clk 0:01:30.3]} 35. c3 {[%clk 0:00:49.6]} 35... Rcb8 {[%clk 0:01:27.2]} 36.
b4 {[%clk 0:00:44.4]} 36... Rh8 {[%clk 0:01:17.6]} 37. Kb3 {[%clk 0:00:42.4]}
37... Rh5 {[%clk 0:01:17.2]} 38. Bc1 {[%clk 0:00:40.1]} 38... Bxc1 {[%clk
0:00:52]} 39. Rxc1 {[%clk 0:00:39.7]} 39... Rg5 {[%clk 0:00:52.7]} 40. Rc2
{[%clk 0:00:38.8]} 40... Rg3 {[%clk 0:00:53]} 41. b5 {[%clk 0:00:35]} 41... Kd7
{[%clk 0:00:50.3]} 42. Kb4 {[%clk 0:00:32.9]} 42... g5 {[%clk 0:00:47]} 43. c4
{[%clk 0:00:30.1]} 43... g4 {[%clk 0:00:46.7]} 44. hxg4 {[%clk 0:00:24.8]} 44...
h3 {[%clk 0:00:41.2]} 45. gxh3 {[%clk 0:00:24.1]} 45... Rxf3 {[%clk 0:00:41.8]}
46. c5 {[%clk 0:00:22.8]} 46... Rb8 {[%clk 0:00:41.7]} 47. cxd6 {[%clk
0:00:20.3]} 47... exd6 {[%clk 0:00:41.7]} 48. Rc6 {[%clk 0:00:20.2]} 48... Rxh3
{[%clk 0:00:35.6]} 49. Rdxd6+ {[%clk 0:00:20.1]} 49... Ke7 {[%clk 0:00:36.1]}
50. Re6+ {[%clk 0:00:20.1]} 50... Kf7 {[%clk 0:00:33.8]} 51. Rxe5 {[%clk
0:00:18.6]} 51... Rh1 {[%clk 0:00:32]} 52. Rf5+ {[%clk 0:00:16.3]} 52... Ke7
{[%clk 0:00:31.9]} 53. b6 {[%clk 0:00:15.8]} 53... Rb1+ {[%clk 0:00:31.4]} 54.
Kc5 {[%clk 0:00:15.8]} 54... Rc1+ {[%clk 0:00:29.5]} 55. Kd5 {[%clk 0:00:15.6]}
55... Rd8+ {[%clk 0:00:28.4]} 56. Ke5 {[%clk 0:00:11.9]} 56... Rxc6 {[%clk
0:00:28.1]} 57. b7 {[%clk 0:00:10.9]} 57... Rc5+ {[%clk 0:00:25]} 0-1

[Event "*** SCC Grand Prix: Titled Tuesday Blitz"]
[Site "Chess.com"]
[Date "2020.10.13"]
[Round "6"]
[White "emiliocordova"]
[Black "temus_galaktionov"]
[Result "1-0"]
[WhiteElo "2831"]
[BlackElo "2637"]
[TimeControl "180+1"]
[EndTime "11:07:57 PDT"]
[Termination "emiliocordova won by resignation"]

1. d4 {[%clk 0:02:58.7]} 1... c6 {[%clk 0:03:00.9]} 2. Nf3 {[%clk 0:02:59]} 2...
g6 {[%clk 0:03:01.8]} 3. g3 {[%clk 0:02:57.5]} 3... d6 {[%clk 0:03:02.7]} 4. Bg2
{[%clk 0:02:58.1]} 4... Nd7 {[%clk 0:03:01.6]} 5. O-O {[%clk 0:02:58.5]} 5...
Bg7 {[%clk 0:03:02.1]} 6. e4 {[%clk 0:02:58.6]} 6... e5 {[%clk 0:03:01.2]} 7.
Nbd2 {[%clk 0:02:55.8]} 7... Ngf6 {[%clk 0:03:01.3]} 8. Nc4 {[%clk 0:02:55.3]}
8... Nxe4 {[%clk 0:02:55.1]} 9. Re1 {[%clk 0:02:48.1]} 9... d5 {[%clk
0:02:55.2]} 10. Rxe4 {[%clk 0:02:39.6]} 10... dxe4 {[%clk 0:02:53.5]} 11. Nd6+
{[%clk 0:02:39.6]} 11... Kf8 {[%clk 0:02:53.8]} 12. Ng5 {[%clk 0:02:39.6]} 12...
Qe7 {[%clk 0:02:37.3]} 13. Ndxf7 {[%clk 0:02:14.4]} 13... Rg8 {[%clk 0:02:33]}
14. dxe5 {[%clk 0:01:44.7]} 14... h6 {[%clk 0:02:26.3]} 15. e6 {[%clk
0:01:37.3]} 15... hxg5 {[%clk 0:02:14]} 16. exd7 {[%clk 0:01:31.2]} 16... Qxd7
{[%clk 0:02:12.5]} 17. Qxd7 {[%clk 0:01:25.2]} 17... Bxd7 {[%clk 0:02:13.4]} 18.
Nxg5 {[%clk 0:01:25.8]} 18... Bf5 {[%clk 0:02:06]} 19. Bxe4 {[%clk 0:01:21.2]}
19... Rd8 {[%clk 0:01:51.3]} 20. Be3 {[%clk 0:01:16.7]} 20... Bxe4 {[%clk
0:01:49.1]} 21. Nxe4 {[%clk 0:01:15.4]} 21... b6 {[%clk 0:01:48.8]} 22. c3
{[%clk 0:01:13.1]} 22... Rd5 {[%clk 0:01:47.4]} 23. a4 {[%clk 0:01:12.8]} 23...
Kf7 {[%clk 0:01:45.2]} 24. h4 {[%clk 0:01:12.5]} 24... Rgd8 {[%clk 0:01:43.4]}
25. Kg2 {[%clk 0:01:12]} 25... Rd1 {[%clk 0:01:42.8]} 26. Ra2 {[%clk 0:01:10.8]}
26... R8d5 {[%clk 0:01:39.3]} 27. c4 {[%clk 0:01:06.5]} 27... Re5 {[%clk
0:01:33.8]} 28. Ng5+ {[%clk 0:01:04.3]} 28... Ke8 {[%clk 0:01:29.9]} 29. b4
{[%clk 0:00:59.9]} 29... Bf8 {[%clk 0:00:58.1]} 30. b5 {[%clk 0:00:51.9]} 30...
Kd7 {[%clk 0:00:53.4]} 31. a5 {[%clk 0:00:51.2]} 31... Bc5 {[%clk 0:00:46.7]}
32. axb6 {[%clk 0:00:50.6]} 32... axb6 {[%clk 0:00:42.4]} 33. Ra7+ {[%clk
0:00:49.2]} 33... Kc8 {[%clk 0:00:42.5]} 34. Bf4 {[%clk 0:00:43.9]} 34... Re2
{[%clk 0:00:37.5]} 35. Rc7+ {[%clk 0:00:41.9]} 35... Kd8 {[%clk 0:00:36.1]} 36.
Kh3 {[%clk 0:00:32.8]} 36... cxb5 {[%clk 0:00:33.2]} 37. cxb5 {[%clk 0:00:32.6]}
37... Ke8 {[%clk 0:00:18.6]} 38. f3 {[%clk 0:00:31.2]} 38... Rd7 {[%clk
0:00:17.2]} 39. Rc8+ {[%clk 0:00:29.7]} 39... Ke7 {[%clk 0:00:17.2]} 40. Rc6
{[%clk 0:00:30.6]} 40... Rd3 {[%clk 0:00:14.7]} 41. Rxg6 {[%clk 0:00:29.4]}
41... Rb3 {[%clk 0:00:15.6]} 42. h5 {[%clk 0:00:26.1]} 42... Re1 {[%clk
0:00:14.1]} 43. h6 {[%clk 0:00:25.8]} 43... Rh1+ {[%clk 0:00:14.1]} 44. Kg4
{[%clk 0:00:26.3]} 44... Rxb5 {[%clk 0:00:14.5]} 45. Be5 {[%clk 0:00:25.4]}
45... Rb4+ {[%clk 0:00:11.5]} 46. f4 {[%clk 0:00:25.5]} 46... Bd4 {[%clk
0:00:12.4]} 47. Rg7+ {[%clk 0:00:21.8]} 47... Ke8 {[%clk 0:00:10.7]} 48. Bxd4
{[%clk 0:00:20.9]} 48... Rxd4 {[%clk 0:00:11.6]} 49. h7 {[%clk 0:00:21.4]} 49...
b5 {[%clk 0:00:10.1]} 50. Rg8+ {[%clk 0:00:21.4]} 50... Kd7 {[%clk 0:00:10.7]}
51. h8=Q {[%clk 0:00:21.9]} 51... Rxh8 {[%clk 0:00:11]} 52. Rxh8 {[%clk
0:00:22.8]} 52... b4 {[%clk 0:00:09.7]} 53. Rb8 {[%clk 0:00:22.7]} 53... Kc6
{[%clk 0:00:09.7]} 54. Nf7 {[%clk 0:00:21.7]} 54... Kc7 {[%clk 0:00:08.5]} 55.
Rb5 {[%clk 0:00:20.4]} 55... Kc6 {[%clk 0:00:08.5]} 56. Rb8 {[%clk 0:00:20.4]}
56... Kc7 {[%clk 0:00:08.7]} 57. Ra8 {[%clk 0:00:20.9]} 57... b3 {[%clk
0:00:08.2]} 58. Ra1 {[%clk 0:00:20.8]} 58... Rd2 {[%clk 0:00:07.6]} 59. Rb1
{[%clk 0:00:21.2]} 59... b2 {[%clk 0:00:07.8]} 60. Ne5 {[%clk 0:00:21.9]} 60...
Kd8 {[%clk 0:00:05.4]} 61. Nc4 {[%clk 0:00:21.7]} 61... Rd4 {[%clk 0:00:06]} 62.
Nxb2 {[%clk 0:00:22]} 62... Rb4 {[%clk 0:00:06.7]} 63. Rd1+ {[%clk 0:00:22.2]}
1-0

[Event "*** SCC Grand Prix: Titled Tuesday Blitz"]
[Site "Chess.com"]
[Date "2020.10.13"]
[Round "6"]
[White "Sergienko_Sergey"]
[Black "Vision_64"]
[Result "1-0"]
[WhiteElo "2401"]
[BlackElo "2222"]
[TimeControl "180+1"]
[EndTime "11:08:01 PDT"]
[Termination "Sergienko_Sergey won on time"]

1. e4 {[%clk 0:02:59.5]} 1... c5 {[%clk 0:02:59.6]} 2. Nf3 {[%clk 0:02:58.6]}
2... Nc6 {[%clk 0:02:58.9]} 3. Bb5 {[%clk 0:02:57.5]} 3... g6 {[%clk 0:02:52.3]}
4. Bxc6 {[%clk 0:02:57]} 4... dxc6 {[%clk 0:02:50.9]} 5. d3 {[%clk 0:02:56.3]}
5... Bg7 {[%clk 0:02:49.9]} 6. Nc3 {[%clk 0:02:55.6]} 6... e5 {[%clk 0:02:49.6]}
7. Be3 {[%clk 0:02:54.4]} 7... b6 {[%clk 0:02:49]} 8. h3 {[%clk 0:02:43.9]} 8...
Ne7 {[%clk 0:02:47]} 9. Qd2 {[%clk 0:02:42.8]} 9... O-O {[%clk 0:02:40.5]} 10.
Bh6 {[%clk 0:02:40.2]} 10... f6 {[%clk 0:02:27.4]} 11. Bxg7 {[%clk 0:02:37.9]}
11... Kxg7 {[%clk 0:02:27.4]} 12. O-O {[%clk 0:02:36.2]} 12... Be6 {[%clk
0:02:24]} 13. b3 {[%clk 0:02:32.6]} 13... Qd7 {[%clk 0:02:11.4]} 14. Ne2 {[%clk
0:02:28.2]} 14... Rad8 {[%clk 0:02:00.8]} 15. Qe3 {[%clk 0:02:22.2]} 15... Nc8
{[%clk 0:01:45.1]} 16. Nh2 {[%clk 0:02:12.8]} 16... Nd6 {[%clk 0:01:38.2]} 17.
f4 {[%clk 0:02:08.1]} 17... Nb5 {[%clk 0:01:30.9]} 18. fxe5 {[%clk 0:01:53.8]}
18... fxe5 {[%clk 0:01:29.6]} 19. Rxf8 {[%clk 0:01:37.2]} 19... Rxf8 {[%clk
0:01:28.3]} 20. Rf1 {[%clk 0:01:35.4]} 20... Rxf1+ {[%clk 0:01:24.8]} 21. Nxf1
{[%clk 0:01:29.5]} 21... Nd4 {[%clk 0:01:24.3]} 22. Neg3 {[%clk 0:01:09.9]}
22... Nxc2 {[%clk 0:01:17.4]} 23. Qg5 {[%clk 0:01:08.2]} 23... h6 {[%clk
0:00:33.7]} 24. Qxe5+ {[%clk 0:01:07.4]} 24... Kh7 {[%clk 0:00:26.5]} 25. Kh2
{[%clk 0:01:00.8]} 25... Ne1 {[%clk 0:00:19.2]} 26. Ne3 {[%clk 0:00:47.9]} 26...
Nxd3 {[%clk 0:00:18.6]} 27. Qf6 {[%clk 0:00:47.7]} 27... Qf7 {[%clk 0:00:17.3]}
28. Qd8 {[%clk 0:00:43.8]} 28... Ne5 {[%clk 0:00:15.9]} 29. Qd6 {[%clk
0:00:38.2]} 29... Nd7 {[%clk 0:00:13.1]} 30. Qxc6 {[%clk 0:00:35.9]} 30... Nf6
{[%clk 0:00:10.4]} 31. e5 {[%clk 0:00:28.9]} 31... Nd7 {[%clk 0:00:10]} 32. Qc7
{[%clk 0:00:25.9]} 32... a5 {[%clk 0:00:07.9]} 33. Nc4 {[%clk 0:00:22.6]} 33...
Bxc4 {[%clk 0:00:07.4]} 34. bxc4 {[%clk 0:00:21.7]} 34... Qe6 {[%clk 0:00:06.9]}
35. Qd6 {[%clk 0:00:17.9]} 35... Qxd6 {[%clk 0:00:06.5]} 36. exd6 {[%clk
0:00:17.6]} 36... Kg7 {[%clk 0:00:06.8]} 37. Ne4 {[%clk 0:00:16.9]} 37... Kf7
{[%clk 0:00:06.5]} 38. Kg3 {[%clk 0:00:14.2]} 38... Ke6 {[%clk 0:00:06.7]} 39.
Kf4 {[%clk 0:00:13.4]} 39... Nb8 {[%clk 0:00:05.3]} 40. h4 {[%clk 0:00:11.6]}
40... Nc6 {[%clk 0:00:05.3]} 41. g4 {[%clk 0:00:10.8]} 41... Nd8 {[%clk
0:00:05.3]} 42. g5 {[%clk 0:00:08.2]} 42... hxg5+ {[%clk 0:00:05.2]} 43. Kxg5
{[%clk 0:00:07.4]} 43... Nf7+ {[%clk 0:00:04.6]} 44. Kxg6 {[%clk 0:00:07.1]}
44... Ne5+ {[%clk 0:00:03.8]} 45. Kg7 {[%clk 0:00:05.9]} 45... Nxc4 {[%clk
0:00:04]} 46. h5 {[%clk 0:00:05.5]} 46... Ne5 {[%clk 0:00:03]} 47. h6 {[%clk
0:00:05]} 47... Nd7 {[%clk 0:00:01.4]} 48. h7 {[%clk 0:00:04.2]} 48... Ke5
{[%clk 0:00:02.3]} 49. h8=Q {[%clk 0:00:03.8]} 49... Kxe4 {[%clk 0:00:02.7]} 50.
Kf7 {[%clk 0:00:03.5]} 50... Ne5+ {[%clk 0:00:02.4]} 51. Ke6 {[%clk 0:00:02.8]}
1-0